[Event "Titled Tuesday Blitz January 17 Early 2023"]
[White "Kiseleva, Arina"]
[Black "Sadhwani, Raunak"]
[WhiteFideId "4164989"]
[BlackFideId "35093487"]
[WhiteElo "1962"]
[BlackElo "2627"]
[Result "0-1"]
[Round "02"]
[TimeControl "180+2"]
[Date "2023.01.17"]
[WhiteClock "0:00:25"]
[BlackClock "0:02:10"]

1. d4 {[%clk 0:03:00]}  g6 {[%clk 0:03:00]} 2. c4 {[%clk 0:02:59]}  Bg7 {[%clk 0:03:01]} 3. e4 {[%clk 0:02:56]}  d6 {[%clk 0:03:01]} 4. Nf3 {[%clk 0:02:53]}  Nd7 {[%clk 0:03:01]} 5. Nc3 {[%clk 0:02:47]}  Ngf6 {[%clk 0:03:01]} 6. h3 {[%clk 0:02:44]}  O-O {[%clk 0:03:00]} 7. Be3 {[%clk 0:02:41]}  e5 {[%clk 0:02:58]} 8. d5 {[%clk 0:02:38]}  Nh5 {[%clk 0:02:59]} 9. Qd2 {[%clk 0:02:32]}  a5 {[%clk 0:02:44]} 10. g4 {[%clk 0:02:26]}  Nf4 {[%clk 0:02:44]} 11. Bxf4 {[%clk 0:02:21]}  exf4 {[%clk 0:02:45]} 12. Qxf4 {[%clk 0:02:21]}  a4 {[%clk 0:02:40]} 13. a3 {[%clk 0:02:00]}  Nc5 {[%clk 0:02:40]} 14. Nd2 {[%clk 0:01:56]}  Ra6 {[%clk 0:02:33]} 15. h4 {[%clk 0:01:34]}  Rb6 {[%clk 0:02:32]} 16. Nd1 {[%clk 0:01:34]}  Be5 {[%clk 0:02:23]} 17. Qf3 {[%clk 0:01:32]}  Re8 {[%clk 0:02:22]} 18. h5 {[%clk 0:01:30]}  Qg5 {[%clk 0:02:21]} 19. hxg6 {[%clk 0:01:10]}  hxg6 {[%clk 0:02:22]} 20. Be2 {[%clk 0:01:00]}  Nb3 {[%clk 0:02:13]} 21. Nb1 {[%clk 0:00:49]}  Nxa1 {[%clk 0:02:12]} 22. Qh3 {[%clk 0:00:46]}  Nc2+ {[%clk 0:02:12]} 23. Kf1 {[%clk 0:00:45]}  Nd4 {[%clk 0:02:13]} 24. Ne3 {[%clk 0:00:36]}  Nxe2 {[%clk 0:02:12]} 25. Kxe2 {[%clk 0:00:36]}  Rxb2+ {[%clk 0:02:12]} 26. Nd2 {[%clk 0:00:32]}  Bc3 {[%clk 0:02:09]} 27. Rd1 {[%clk 0:00:25]}  Rxd2+ {[%clk 0:02:08]} 28. Rxd2 {[%clk 0:00:25]}  Bxd2 {[%clk 0:02:09]} 29. Kxd2 {[%clk 0:00:25]}  Rxe4 {[%clk 0:02:10]} 0-1


[Site "https://www.chess.com"]

[Event "Titled Tuesday Blitz January 17 Early 2023"]
[White "Esipenko, Andrey"]
[Black "Jumanov, Elbek"]
[WhiteFideId "24175439"]
[BlackFideId "14202905"]
[WhiteElo "2679"]
[BlackElo "2155"]
[Result "1-0"]
[Round "02"]
[TimeControl "180+2"]
[Date "2023.01.17"]
[WhiteClock "0:00:11"]
[BlackClock "0:00:03"]

1. Nf3 {[%clk 0:02:54]}  Nf6 {[%clk 0:02:59]} 2. c4 {[%clk 0:02:53]}  c5 {[%clk 0:02:58]} 3. Nc3 {[%clk 0:02:52]}  Nc6 {[%clk 0:02:56]} 4. g3 {[%clk 0:02:49]}  g6 {[%clk 0:02:55]} 5. Bg2 {[%clk 0:02:48]}  Bg7 {[%clk 0:02:56]} 6. O-O {[%clk 0:02:47]}  O-O {[%clk 0:02:56]} 7. d4 {[%clk 0:02:46]}  cxd4 {[%clk 0:02:57]} 8. Nxd4 {[%clk 0:02:47]}  d6 {[%clk 0:02:57]} 9. Nc2 {[%clk 0:02:42]}  Be6 {[%clk 0:02:56]} 10. b3 {[%clk 0:02:42]}  Qd7 {[%clk 0:02:55]} 11. Bb2 {[%clk 0:02:35]}  Bh3 {[%clk 0:02:55]} 12. Rb1 {[%clk 0:02:30]}  Bxg2 {[%clk 0:02:52]} 13. Kxg2 {[%clk 0:02:31]}  Rac8 {[%clk 0:02:52]} 14. e4 {[%clk 0:02:29]}  a6 {[%clk 0:02:41]} 15. Qe2 {[%clk 0:02:27]}  Qg4 {[%clk 0:02:11]} 16. f3 {[%clk 0:02:22]}  Qh5 {[%clk 0:02:10]} 17. Rbd1 {[%clk 0:01:57]}  Ne5 {[%clk 0:02:04]} 18. Ne3 {[%clk 0:01:46]}  Rfe8 {[%clk 0:01:47]} 19. Rf2 {[%clk 0:01:27]}  Nc6 {[%clk 0:01:28]} 20. h4 {[%clk 0:00:58]}  Qa5 {[%clk 0:01:26]} 21. Qe1 {[%clk 0:00:46]}  b5 {[%clk 0:01:13]} 22. Qe2 {[%clk 0:00:32]}  b4 {[%clk 0:01:08]} 23. Na4 {[%clk 0:00:26]}  Nd7 {[%clk 0:00:39]} 24. Nd5 {[%clk 0:00:23]}  Bxb2 {[%clk 0:00:24]} 25. Qxb2 {[%clk 0:00:24]}  Nce5 {[%clk 0:00:23]} 26. h5 {[%clk 0:00:24]}  Nxc4 {[%clk 0:00:21]} 27. bxc4 {[%clk 0:00:23]}  Qxa4 {[%clk 0:00:21]} 28. Rh1 {[%clk 0:00:24]}  Qa3 {[%clk 0:00:17]} 29. Qa1 {[%clk 0:00:19]}  e5 {[%clk 0:00:10]} 30. Qg1 {[%clk 0:00:17]}  Kg7 {[%clk 0:00:02]} 31. Qh2 {[%clk 0:00:14]}  Rh8 {[%clk 0:00:03]} 32. Qh4 {[%clk 0:00:11]} 1-0


[Site "https://www.chess.com"]

[Event "Titled Tuesday Blitz January 17 Early 2023"]
[White "Luukkonen, Tommi"]
[Black "Predke, Alexandr"]
[WhiteFideId "501808"]
[BlackFideId "24107581"]
[WhiteElo "2292"]
[BlackElo "2685"]
[Result "0-1"]
[Round "02"]
[TimeControl "180+2"]
[Date "2023.01.17"]
[WhiteClock "0:01:12"]
[BlackClock "0:00:05"]

1. e4 {[%clk 0:03:00]}  c5 {[%clk 0:02:51]} 2. Nf3 {[%clk 0:02:59]}  e6 {[%clk 0:02:51]} 3. d4 {[%clk 0:02:59]}  cxd4 {[%clk 0:02:51]} 4. Nxd4 {[%clk 0:02:59]}  a6 {[%clk 0:02:51]} 5. Bd3 {[%clk 0:02:56]}  Bc5 {[%clk 0:02:51]} 6. Nb3 {[%clk 0:02:56]}  Ba7 {[%clk 0:02:51]} 7. Qe2 {[%clk 0:02:55]}  Nc6 {[%clk 0:02:49]} 8. Be3 {[%clk 0:02:54]}  Nf6 {[%clk 0:02:49]} 9. Bxa7 {[%clk 0:02:53]}  Rxa7 {[%clk 0:02:49]} 10. Nc3 {[%clk 0:02:54]}  d6 {[%clk 0:02:45]} 11. O-O {[%clk 0:02:53]}  b5 {[%clk 0:02:31]} 12. a4 {[%clk 0:02:52]}  b4 {[%clk 0:02:29]} 13. Nd1 {[%clk 0:02:51]}  O-O {[%clk 0:02:12]} 14. Ne3 {[%clk 0:02:51]}  d5 {[%clk 0:02:12]} 15. exd5 {[%clk 0:02:50]}  exd5 {[%clk 0:02:13]} 16. Rad1 {[%clk 0:02:49]}  Qb6 {[%clk 0:02:06]} 17. Qf3 {[%clk 0:02:37]}  Ne5 {[%clk 0:02:04]} 18. Qg3 {[%clk 0:02:37]}  Re8 {[%clk 0:01:53]} 19. a5 {[%clk 0:02:36]}  Qc7 {[%clk 0:01:34]} 20. Nf5 {[%clk 0:02:36]}  Bxf5 {[%clk 0:01:30]} 21. Bxf5 {[%clk 0:02:37]}  Nc4 {[%clk 0:01:27]} 22. Qxc7 {[%clk 0:02:30]}  Rxc7 {[%clk 0:01:28]} 23. Rb1 {[%clk 0:02:29]}  Ne4 {[%clk 0:01:17]} 24. Rfd1 {[%clk 0:02:27]}  g6 {[%clk 0:01:16]} 25. Bg4 {[%clk 0:02:21]}  h5 {[%clk 0:01:05]} 26. Bf3 {[%clk 0:02:21]}  Re5 {[%clk 0:01:04]} 27. Rd3 {[%clk 0:02:13]}  Nf6 {[%clk 0:00:58]} 28. h3 {[%clk 0:02:11]}  Nd6 {[%clk 0:00:48]} 29. Nd4 {[%clk 0:02:07]}  Rc5 {[%clk 0:00:44]} 30. Ra1 {[%clk 0:02:06]}  Nc4 {[%clk 0:00:37]} 31. Nb3 {[%clk 0:02:05]}  Rb5 {[%clk 0:00:38]} 32. Nd4 {[%clk 0:01:59]}  Rxa5 {[%clk 0:00:35]} 33. Rxa5 {[%clk 0:01:57]}  Nxa5 {[%clk 0:00:36]} 34. Nb3 {[%clk 0:01:54]}  Nc4 {[%clk 0:00:35]} 35. Nc5 {[%clk 0:01:50]}  a5 {[%clk 0:00:30]} 36. b3 {[%clk 0:01:50]}  Re1+ {[%clk 0:00:26]} 37. Kh2 {[%clk 0:01:49]}  Ne5 {[%clk 0:00:27]} 38. Re3 {[%clk 0:01:47]}  Nxf3+ {[%clk 0:00:18]} 39. gxf3 {[%clk 0:01:46]}  Rc1 {[%clk 0:00:17]} 40. Re2 {[%clk 0:01:43]}  h4 {[%clk 0:00:16]} 41. Nb7 {[%clk 0:01:43]}  Ra1 {[%clk 0:00:16]} 42. Nd6 {[%clk 0:01:41]}  Kf8 {[%clk 0:00:15]} 43. f4 {[%clk 0:01:39]}  Ra2 {[%clk 0:00:11]} 44. Nb5 {[%clk 0:01:36]}  a4 {[%clk 0:00:09]} 45. bxa4 {[%clk 0:01:24]}  b3 {[%clk 0:00:10]} 46. Nc3 {[%clk 0:01:24]}  b2 {[%clk 0:00:07]} 47. Re1 {[%clk 0:01:24]}  Ra3 {[%clk 0:00:07]} 48. Nb1 {[%clk 0:01:21]}  Rxa4 {[%clk 0:00:07]} 49. Re3 {[%clk 0:01:12]}  Ra1 {[%clk 0:00:07]} 50. Re1 {[%clk 0:01:12]}  Ne4 {[%clk 0:00:05]} 0-1


[Site "https://www.chess.com"]

[Event "Titled Tuesday Blitz January 17 Early 2023"]
[White "Rengifo Blancas, Renzo Jhonathan"]
[Black "Molina, Roberto Junio Brito"]
[WhiteFideId "3807185"]
[BlackFideId "2109450"]
[WhiteElo "2131"]
[BlackElo "2403"]
[Result "0-1"]
[Round "02"]
[TimeControl "180+2"]
[Date "2023.01.17"]
[WhiteClock "0:00:05"]
[BlackClock "0:02:18"]

1. e4 {[%clk 0:03:00]}  c6 {[%clk 0:02:59]} 2. d4 {[%clk 0:03:00]}  d5 {[%clk 0:03:00]} 3. Nc3 {[%clk 0:03:01]}  dxe4 {[%clk 0:03:00]} 4. Nxe4 {[%clk 0:03:02]}  Nd7 {[%clk 0:03:00]} 5. Ng5 {[%clk 0:03:02]}  Ngf6 {[%clk 0:03:00]} 6. Bd3 {[%clk 0:03:02]}  e6 {[%clk 0:03:00]} 7. N1f3 {[%clk 0:03:02]}  Bd6 {[%clk 0:03:00]} 8. Qe2 {[%clk 0:03:02]}  h6 {[%clk 0:03:00]} 9. Ne4 {[%clk 0:03:02]}  Nxe4 {[%clk 0:03:01]} 10. Qxe4 {[%clk 0:03:03]}  Qc7 {[%clk 0:03:01]} 11. Bd2 {[%clk 0:03:02]}  b6 {[%clk 0:03:01]} 12. Qg4 {[%clk 0:02:42]}  g5 {[%clk 0:03:00]} 13. Qh3 {[%clk 0:02:26]}  Rg8 {[%clk 0:03:00]} 14. Qxh6 {[%clk 0:02:24]}  Bf8 {[%clk 0:02:59]} 15. Qh3 {[%clk 0:02:01]}  g4 {[%clk 0:02:58]} 16. Qh7 {[%clk 0:02:01]}  Rg7 {[%clk 0:02:47]} 17. Qh8 {[%clk 0:02:01]}  gxf3 {[%clk 0:02:46]} 18. gxf3 {[%clk 0:01:45]}  Bb7 {[%clk 0:02:39]} 19. Bh6 {[%clk 0:01:19]}  O-O-O {[%clk 0:02:35]} 20. O-O-O {[%clk 0:01:07]}  Rg8 {[%clk 0:02:25]} 21. Qh7 {[%clk 0:00:16]}  Nf6 {[%clk 0:02:23]} 22. Qxg8 {[%clk 0:00:08]}  Bxh6+ {[%clk 0:02:19]} 23. Kb1 {[%clk 0:00:05]}  Rxg8 {[%clk 0:02:18]} 0-1


[Site "https://www.chess.com"]

[Event "Titled Tuesday Blitz January 17 Early 2023"]
[White "Paichadze, Luka"]
[Black "Dinu, Dumitru-Daniel"]
[WhiteFideId "13602934"]
[BlackFideId "1208403"]
[WhiteElo "2515"]
[BlackElo "2203"]
[Result "1-0"]
[Round "02"]
[TimeControl "180+2"]
[Date "2023.01.17"]
[WhiteClock "0:01:36"]
[BlackClock "0:00:10"]

1. e4 {[%clk 0:03:00]}  c6 {[%clk 0:02:59]} 2. d4 {[%clk 0:02:59]}  d5 {[%clk 0:02:59]} 3. e5 {[%clk 0:03:00]}  Bf5 {[%clk 0:02:59]} 4. h4 {[%clk 0:03:00]}  h6 {[%clk 0:02:59]} 5. g4 {[%clk 0:02:59]}  Bd7 {[%clk 0:02:59]} 6. h5 {[%clk 0:02:59]}  c5 {[%clk 0:02:58]} 7. c3 {[%clk 0:02:58]}  Nc6 {[%clk 0:02:58]} 8. f4 {[%clk 0:02:56]}  cxd4 {[%clk 0:02:57]} 9. cxd4 {[%clk 0:02:55]}  Qb6 {[%clk 0:02:57]} 10. Nc3 {[%clk 0:02:52]}  Qxd4 {[%clk 0:02:46]} 11. Qf3 {[%clk 0:02:39]}  Nb4 {[%clk 0:02:30]} 12. Be3 {[%clk 0:02:31]}  Nc2+ {[%clk 0:02:05]} 13. Kf2 {[%clk 0:02:30]}  Qxe3+ {[%clk 0:01:56]} 14. Qxe3 {[%clk 0:02:31]}  Nxe3 {[%clk 0:01:56]} 15. Kxe3 {[%clk 0:02:32]}  e6 {[%clk 0:01:44]} 16. Nf3 {[%clk 0:02:32]}  Bc5+ {[%clk 0:01:43]} 17. Nd4 {[%clk 0:02:32]}  Ne7 {[%clk 0:01:39]} 18. Nb5 {[%clk 0:02:23]}  Bxb5 {[%clk 0:01:03]} 19. Bxb5+ {[%clk 0:02:24]}  Kd8 {[%clk 0:01:01]} 20. Rac1 {[%clk 0:02:09]}  Rc8 {[%clk 0:00:48]} 21. Kd3 {[%clk 0:02:02]}  a6 {[%clk 0:00:31]} 22. Ba4 {[%clk 0:02:02]}  b5 {[%clk 0:00:29]} 23. Bb3 {[%clk 0:02:02]}  Bxd4 {[%clk 0:00:26]} 24. Kxd4 {[%clk 0:02:03]}  Nc6+ {[%clk 0:00:26]} 25. Ke3 {[%clk 0:02:03]}  Kd7 {[%clk 0:00:22]} 26. Rhd1 {[%clk 0:02:03]}  Na5 {[%clk 0:00:20]} 27. f5 {[%clk 0:01:59]}  Rxc1 {[%clk 0:00:20]} 28. Rxc1 {[%clk 0:01:59]}  Rc8 {[%clk 0:00:19]} 29. Rxc8 {[%clk 0:01:58]}  Kxc8 {[%clk 0:00:19]} 30. f6 {[%clk 0:01:59]}  gxf6 {[%clk 0:00:18]} 31. exf6 {[%clk 0:01:59]}  Nc6 {[%clk 0:00:14]} 32. Kf4 {[%clk 0:01:47]}  Kd8 {[%clk 0:00:14]} 33. g5 {[%clk 0:01:46]}  hxg5+ {[%clk 0:00:14]} 34. Kxg5 {[%clk 0:01:47]}  Nd4 {[%clk 0:00:11]} 35. h6 {[%clk 0:01:45]}  Nf3+ {[%clk 0:00:11]} 36. Kf4 {[%clk 0:01:37]}  Nh4 {[%clk 0:00:10]} 37. Bc2 {[%clk 0:01:37]}  e5+ {[%clk 0:00:09]} 38. Kxe5 {[%clk 0:01:37]}  Ke8 {[%clk 0:00:09]} 39. h7 {[%clk 0:01:36]}  Ng6+ {[%clk 0:00:10]} 1-0


[Site "https://www.chess.com"]

[Event "Titled Tuesday Blitz January 17 Early 2023"]
[White "Horcajuelo Rocamora, Martin"]
[Black "Zemlyanskii, Ivan"]
[WhiteFideId "24573027"]
[BlackFideId "24249971"]
[WhiteElo "2107"]
[BlackElo "2300"]
[Result "1-0"]
[Round "02"]
[TimeControl "180+2"]
[Date "2023.01.17"]
[WhiteClock "0:00:04"]
[BlackClock "0:00:03"]

1. e4 {[%clk 0:02:44]}  c5 {[%clk 0:02:59]} 2. Nf3 {[%clk 0:02:43]}  e6 {[%clk 0:03:00]} 3. d4 {[%clk 0:02:43]}  cxd4 {[%clk 0:03:01]} 4. Nxd4 {[%clk 0:02:43]}  Nf6 {[%clk 0:03:02]} 5. Nc3 {[%clk 0:02:42]}  Nc6 {[%clk 0:03:02]} 6. Ndb5 {[%clk 0:02:26]}  Bc5 {[%clk 0:03:02]} 7. Nd6+ {[%clk 0:02:23]}  Ke7 {[%clk 0:03:02]} 8. Bf4 {[%clk 0:02:24]}  e5 {[%clk 0:03:00]} 9. Nf5+ {[%clk 0:02:23]}  Kf8 {[%clk 0:03:00]} 10. Bg5 {[%clk 0:02:24]}  d6 {[%clk 0:03:00]} 11. Bc4 {[%clk 0:02:17]}  Be6 {[%clk 0:02:58]} 12. Nd5 {[%clk 0:02:12]}  Bxf2+ {[%clk 0:02:15]} 13. Kf1 {[%clk 0:02:02]}  Bc5 {[%clk 0:01:53]} 14. Bxf6 {[%clk 0:01:53]}  gxf6 {[%clk 0:01:53]} 15. Qh5 {[%clk 0:01:26]}  h6 {[%clk 0:01:30]} 16. Rd1 {[%clk 0:01:16]}  Nd4 {[%clk 0:01:03]} 17. Nxd4 {[%clk 0:01:11]}  Bxd4 {[%clk 0:01:04]} 18. c3 {[%clk 0:01:09]}  Bc5 {[%clk 0:00:56]} 19. Qf3 {[%clk 0:01:07]}  Rg8 {[%clk 0:00:51]} 20. h3 {[%clk 0:01:01]}  Rg6 {[%clk 0:00:50]} 21. g4 {[%clk 0:00:56]}  Kg7 {[%clk 0:00:49]} 22. Bb3 {[%clk 0:00:54]}  a5 {[%clk 0:00:42]} 23. a4 {[%clk 0:00:48]}  Rb8 {[%clk 0:00:40]} 24. Bc4 {[%clk 0:00:46]}  Bd7 {[%clk 0:00:29]} 25. b4 {[%clk 0:00:36]}  axb4 {[%clk 0:00:28]} 26. cxb4 {[%clk 0:00:37]}  Bd4 {[%clk 0:00:29]} 27. Bb3 {[%clk 0:00:33]}  Be6 {[%clk 0:00:26]} 28. Ke2 {[%clk 0:00:31]}  Rc8 {[%clk 0:00:22]} 29. Rc1 {[%clk 0:00:31]}  Rxc1 {[%clk 0:00:17]} 30. Rxc1 {[%clk 0:00:31]}  Rg5 {[%clk 0:00:15]} 31. Rf1 {[%clk 0:00:25]}  Rg6 {[%clk 0:00:11]} 32. Bc4 {[%clk 0:00:25]}  Qc8 {[%clk 0:00:03]} 33. Qb3 {[%clk 0:00:25]}  Qd8 {[%clk 0:00:03]} 34. Rc1 {[%clk 0:00:23]}  h5 {[%clk 0:00:03]} 35. gxh5 {[%clk 0:00:18]}  Rg2+ {[%clk 0:00:04]} 36. Kd1 {[%clk 0:00:18]}  Qh8 {[%clk 0:00:02]} 37. Be2 {[%clk 0:00:18]}  Qh6 {[%clk 0:00:02]} 38. Qf3 {[%clk 0:00:06]}  Rg1+ {[%clk 0:00:02]} 39. Bf1 {[%clk 0:00:06]}  Qg5 {[%clk 0:00:02]} 40. Rc2 {[%clk 0:00:06]}  Bxh3 {[%clk 0:00:02]} 41. Ne3 {[%clk 0:00:04]}  Bxe3 {[%clk 0:00:02]} 42. Qxh3 {[%clk 0:00:04]}  Qf4 {[%clk 0:00:03]} 43. Rg2+ {[%clk 0:00:04]} 1-0


[Site "https://www.chess.com"]

[Event "Titled Tuesday Blitz January 17 Early 2023"]
[White "Kostenko, Petr"]
[Black "Shipov, Sergei"]
[WhiteFideId "13700669"]
[BlackFideId "4113624"]
[WhiteElo "2371"]
[BlackElo "2541"]
[Result "1/2-1/2"]
[Round "02"]
[TimeControl "180+2"]
[Date "2023.01.17"]
[WhiteClock "0:00:49"]
[BlackClock "0:01:01"]

1. c4 {[%clk 0:03:00]}  Nf6 {[%clk 0:02:57]} 2. g3 {[%clk 0:03:00]}  c6 {[%clk 0:02:58]} 3. b3 {[%clk 0:02:57]}  d5 {[%clk 0:02:58]} 4. Bb2 {[%clk 0:02:57]}  Bg4 {[%clk 0:02:57]} 5. Bg2 {[%clk 0:02:57]}  Nbd7 {[%clk 0:02:56]} 6. Nf3 {[%clk 0:02:57]}  e6 {[%clk 0:02:55]} 7. O-O {[%clk 0:02:56]}  Bd6 {[%clk 0:02:53]} 8. d4 {[%clk 0:02:57]}  O-O {[%clk 0:02:52]} 9. Nbd2 {[%clk 0:02:57]}  h6 {[%clk 0:02:46]} 10. Re1 {[%clk 0:02:57]}  a5 {[%clk 0:02:41]} 11. a3 {[%clk 0:02:56]}  Qe7 {[%clk 0:02:36]} 12. e4 {[%clk 0:02:51]}  dxe4 {[%clk 0:02:34]} 13. Nxe4 {[%clk 0:02:52]}  Nxe4 {[%clk 0:02:35]} 14. Rxe4 {[%clk 0:02:52]}  Nf6 {[%clk 0:02:35]} 15. Re1 {[%clk 0:02:47]}  Rfd8 {[%clk 0:02:34]} 16. Qc1 {[%clk 0:02:02]}  Qc7 {[%clk 0:02:21]} 17. d5 {[%clk 0:01:54]}  cxd5 {[%clk 0:02:17]} 18. Bxf6 {[%clk 0:01:53]}  gxf6 {[%clk 0:02:17]} 19. Qxh6 {[%clk 0:01:51]}  Bxf3 {[%clk 0:01:59]} 20. Bxf3 {[%clk 0:01:51]}  Be5 {[%clk 0:01:56]} 21. Rac1 {[%clk 0:01:50]}  d4 {[%clk 0:01:55]} 22. c5 {[%clk 0:01:25]}  d3 {[%clk 0:01:50]} 23. Red1 {[%clk 0:01:22]}  f5 {[%clk 0:01:41]} 24. Rc4 {[%clk 0:00:55]}  Bg7 {[%clk 0:01:18]} 25. Qf4 {[%clk 0:00:55]}  Qxf4 {[%clk 0:01:12]} 26. gxf4 {[%clk 0:00:55]}  Rab8 {[%clk 0:01:10]} 27. Ra4 {[%clk 0:00:50]}  Bc3 {[%clk 0:01:04]} 28. Rc4 {[%clk 0:00:49]}  Bg7 {[%clk 0:01:02]} 29. Ra4 {[%clk 0:00:49]}  Bc3 {[%clk 0:01:01]} 30. Rc4 {[%clk 0:00:49]}  Bg7 {[%clk 0:01:01]} 1/2-1/2


[Site "https://www.chess.com"]

[Event "Titled Tuesday Blitz January 17 Early 2023"]
[White "Dvirnyy, Danyyil"]
[Black "Batsiashvili, Nino"]
[WhiteFideId "817570"]
[BlackFideId "13602993"]
[WhiteElo "2541"]
[BlackElo "2467"]
[Result "0-1"]
[Round "02"]
[TimeControl "180+2"]
[Date "2023.01.17"]
[WhiteClock "0:00:02"]
[BlackClock "0:00:17"]

1. d4 {[%clk 0:03:00]}  Nf6 {[%clk 0:02:58]} 2. c4 {[%clk 0:02:56]}  c5 {[%clk 0:02:58]} 3. d5 {[%clk 0:02:56]}  b5 {[%clk 0:02:58]} 4. cxb5 {[%clk 0:02:55]}  a6 {[%clk 0:02:57]} 5. e3 {[%clk 0:02:53]}  e6 {[%clk 0:02:58]} 6. Nc3 {[%clk 0:02:53]}  exd5 {[%clk 0:02:58]} 7. Nxd5 {[%clk 0:02:53]}  Bb7 {[%clk 0:02:57]} 8. e4 {[%clk 0:02:52]}  Nxd5 {[%clk 0:02:38]} 9. exd5 {[%clk 0:02:52]}  axb5 {[%clk 0:02:36]} 10. Nf3 {[%clk 0:02:43]}  Bd6 {[%clk 0:02:06]} 11. Qe2+ {[%clk 0:02:34]}  Qe7 {[%clk 0:02:05]} 12. Qxe7+ {[%clk 0:02:28]}  Bxe7 {[%clk 0:02:02]} 13. Bxb5 {[%clk 0:02:29]}  Bxd5 {[%clk 0:02:02]} 14. O-O {[%clk 0:02:22]}  Bxf3 {[%clk 0:01:58]} 15. gxf3 {[%clk 0:02:21]}  O-O {[%clk 0:01:58]} 16. Rd1 {[%clk 0:02:17]}  Rd8 {[%clk 0:01:55]} 17. Bf4 {[%clk 0:02:15]}  d5 {[%clk 0:01:53]} 18. a4 {[%clk 0:02:07]}  Bf6 {[%clk 0:01:52]} 19. Rac1 {[%clk 0:01:50]}  c4 {[%clk 0:01:44]} 20. Rd2 {[%clk 0:01:15]}  h6 {[%clk 0:01:10]} 21. Rcd1 {[%clk 0:01:10]}  Na6 {[%clk 0:00:56]} 22. Rxd5 {[%clk 0:01:08]}  Rxd5 {[%clk 0:00:54]} 23. Rxd5 {[%clk 0:01:09]}  Nb4 {[%clk 0:00:43]} 24. Rd7 {[%clk 0:01:07]}  Nd3 {[%clk 0:00:43]} 25. Bc7 {[%clk 0:00:21]}  Nxb2 {[%clk 0:00:40]} 26. a5 {[%clk 0:00:21]}  c3 {[%clk 0:00:39]} 27. a6 {[%clk 0:00:20]}  c2 {[%clk 0:00:36]} 28. Bf4 {[%clk 0:00:20]}  Rc8 {[%clk 0:00:30]} 29. a7 {[%clk 0:00:20]}  Bg5 {[%clk 0:00:29]} 30. Rc7 {[%clk 0:00:18]}  Rxc7 {[%clk 0:00:25]} 31. a8=Q+ {[%clk 0:00:17]}  Kh7 {[%clk 0:00:24]} 32. Qe4+ {[%clk 0:00:11]}  g6 {[%clk 0:00:19]} 33. Bc1 {[%clk 0:00:01]}  Bxc1 {[%clk 0:00:18]} 34. Qe5 {[%clk 0:00:02]}  Bf4 {[%clk 0:00:17]} 0-1


[Site "https://www.chess.com"]

[Event "Titled Tuesday Blitz January 17 Early 2023"]
[White "Borges Feria, Yasel"]
[Black "Lacasa Diaz, Jose Antonio"]
[WhiteFideId "3504921"]
[BlackFideId "2203375"]
[WhiteElo "2439"]
[BlackElo "2359"]
[Result "1/2-1/2"]
[Round "02"]
[TimeControl "180+2"]
[Date "2023.01.17"]
[WhiteClock "0:00:22"]
[BlackClock "0:00:31"]

1. d4 {[%clk 0:03:00]}  d5 {[%clk 0:02:59]} 2. c4 {[%clk 0:02:58]}  e6 {[%clk 0:02:59]} 3. Nc3 {[%clk 0:02:58]}  c5 {[%clk 0:03:00]} 4. cxd5 {[%clk 0:02:57]}  exd5 {[%clk 0:03:01]} 5. Nf3 {[%clk 0:02:57]}  Nc6 {[%clk 0:03:00]} 6. dxc5 {[%clk 0:02:56]}  d4 {[%clk 0:03:00]} 7. Na4 {[%clk 0:02:56]}  Bxc5 {[%clk 0:03:00]} 8. Nxc5 {[%clk 0:02:57]}  Qa5+ {[%clk 0:03:00]} 9. Qd2 {[%clk 0:02:57]}  Qxc5 {[%clk 0:02:58]} 10. a3 {[%clk 0:02:57]}  Nf6 {[%clk 0:02:40]} 11. b4 {[%clk 0:02:56]}  Qb6 {[%clk 0:02:39]} 12. Bb2 {[%clk 0:02:54]}  O-O {[%clk 0:02:39]} 13. Bxd4 {[%clk 0:02:48]}  Nxd4 {[%clk 0:02:32]} 14. Qxd4 {[%clk 0:02:49]}  Qc7 {[%clk 0:02:25]} 15. e3 {[%clk 0:02:49]}  Rd8 {[%clk 0:02:17]} 16. Qb2 {[%clk 0:02:45]}  a5 {[%clk 0:01:44]} 17. b5 {[%clk 0:02:37]}  Bg4 {[%clk 0:01:20]} 18. Be2 {[%clk 0:02:29]}  Ne4 {[%clk 0:01:20]} 19. Rc1 {[%clk 0:02:26]}  Qe7 {[%clk 0:01:13]} 20. Rc2 {[%clk 0:02:02]}  Ng5 {[%clk 0:00:41]} 21. Nxg5 {[%clk 0:01:15]}  Bxe2 {[%clk 0:00:42]} 22. Rxe2 {[%clk 0:01:15]}  Qxg5 {[%clk 0:00:42]} 23. O-O {[%clk 0:01:15]}  Rac8 {[%clk 0:00:41]} 24. h3 {[%clk 0:01:06]}  h5 {[%clk 0:00:40]} 25. a4 {[%clk 0:01:06]}  Qh4 {[%clk 0:00:39]} 26. e4 {[%clk 0:00:59]}  Rc4 {[%clk 0:00:37]} 27. e5 {[%clk 0:00:41]}  Rxa4 {[%clk 0:00:36]} 28. e6 {[%clk 0:00:41]}  fxe6 {[%clk 0:00:35]} 29. Rxe6 {[%clk 0:00:42]}  Rb4 {[%clk 0:00:33]} 30. Qa2 {[%clk 0:00:40]}  Qc4 {[%clk 0:00:31]} 31. Qxc4 {[%clk 0:00:25]}  Rxc4 {[%clk 0:00:32]} 32. Rb6 {[%clk 0:00:25]}  Rd7 {[%clk 0:00:33]} 33. Ra1 {[%clk 0:00:25]}  a4 {[%clk 0:00:33]} 34. Re6 {[%clk 0:00:24]}  Rb4 {[%clk 0:00:31]} 35. Re8+ {[%clk 0:00:24]}  Kf7 {[%clk 0:00:31]} 36. Ra8 {[%clk 0:00:25]}  Rxb5 {[%clk 0:00:30]} 37. R8xa4 {[%clk 0:00:26]}  Re7 {[%clk 0:00:29]} 38. h4 {[%clk 0:00:24]}  Rbe5 {[%clk 0:00:29]} 39. Rb4 {[%clk 0:00:21]}  Re4 {[%clk 0:00:29]} 40. Rab1 {[%clk 0:00:19]}  Rxb4 {[%clk 0:00:27]} 41. Rxb4 {[%clk 0:00:20]}  Rd7 {[%clk 0:00:27]} 42. g3 {[%clk 0:00:19]}  g6 {[%clk 0:00:28]} 43. Kg2 {[%clk 0:00:19]}  Kg7 {[%clk 0:00:29]} 44. Rb5 {[%clk 0:00:19]}  Rf7 {[%clk 0:00:29]} 45. Rb6 {[%clk 0:00:20]}  Kh7 {[%clk 0:00:29]} 46. Rb5 {[%clk 0:00:20]}  Kg7 {[%clk 0:00:30]} 47. Rb6 {[%clk 0:00:21]}  Kh7 {[%clk 0:00:31]} 48. Rb5 {[%clk 0:00:22]}  Kg7 {[%clk 0:00:31]} 1/2-1/2


[Site "https://www.chess.com"]